Workbook

Sheet Sheet1
B1: 労働保険 | F1: 平成 | G1: 24 | H1: 年度 | I1: 確定保険料算定基礎賃金集計表
B2: 番号
D3: 事業の名称
D4: 郵便番号
D5: 事業の所在地
F7: 労災保険対象労働者数及び賃金 | M7: 雇用保険対象労働者数及び賃金
B8: 月別 | C8: 1 | D8: 常用労働者 | E8: 2 | F8: 役員で労働者扱い | G8: 3 | H8: 臨時労働者 | I8: 4 | J8: 合計 | L8: 5 | M8: １常用労働者 | N8: 6 | O8: 役員で労働者 | P8: 7 | Q8: 合計 | R8: 8 | S8: 高年齢者分
C9: 人 | D9: 円 | E9: 人 | F9: 円 | G9: 人 | H9: 円 | I9: 人 | J9: 円 | K9: 月 | L9: 人 | M9: 円 | N9: 人 | O9: 円 | P9: 人 | Q9: 円 | R9: 人 | S9: 円
B10: 24年４ | C10: 9 | D10: =2300257+370864 -> 2671121 | G10: 4 | H10: 163700 | J10: =D10+F10+H10 -> 2834821 | K10: 4 | L10: =+C10 -> 9 | M10: =+D10 -> 2671121 | N10: =+E10 -> 0 | O10: =+F10 -> 0 | P10: =+L10+N10 -> 9 | Q10: =+M10+O10 -> 2671121
B11: 5 | C11: 9 | D11: =2492840+383044 -> 2875884 | G11: 4 | H11: 130750 | J11: =D11+F11+H11 -> 3006634 | K11: 5 | L11: 9 | M11: 2875884 | N11: 0 | O11: 0 | P11: 9 | Q11: 2875884
B12: 6 | C12: 9 | D12: =2426651+407664 -> 2834315 | G12: 4 | H12: 229400 | J12: 3063715 | K12: 6 | L12: 9 | M12: 2834315 | N12: 0 | O12: 0 | P12: 9 | Q12: 2834315
B13: 7 | C13: 9 | D13: =2328484+357264 -> 2685748 | G13: 4 | H13: 283450 | J13: 2969198 | K13: 7 | L13: 9 | M13: 2685748 | N13: 0 | O13: 0 | P13: 9 | Q13: 2685748
B14: 8 | C14: 9 | D14: =2522678+334739 -> 2857417 | G14: 3 | H14: 179750 | J14: 3037167 | K14: 8 | L14: 9 | M14: 2857417 | N14: 0 | O14: 0 | P14: 9 | Q14: 2857417
B15: 9 | C15: 9 | D15: =2286318+526339 -> 2812657 | G15: 4 | H15: 241800 | J15: 3054457 | K15: 9 | L15: 9 | M15: 2812657 | N15: 0 | O15: 0 | P15: 9 | Q15: 2812657
B16: 10 | C16: 9 | D16: =2246662+389239 -> 2635901 | G16: 3 | H16: 197800 | J16: 2833701 | K16: 10 | L16: 9 | M16: 2635901 | N16: 0 | O16: 0 | P16: 9 | Q16: 2635901
B17: 11 | C17: 9 | D17: =2275377+404739 -> 2680116 | G17: 3 | H17: 191400 | J17: 2871516 | K17: 11 | L17: 9 | M17: 2680116 | N17: 0 | O17: 0 | P17: 9 | Q17: 2680116
B18: 12 | C18: 9 | D18: =2281718+568339 -> 2850057 | G18: 3 | H18: 211000 | J18: 3061057 | K18: 12 | L18: 9 | M18: 2850057 | N18: 0 | O18: 0 | P18: 9 | Q18: 2850057
B19: ２５年１ | C19: 9 | D19: =2330208+311539 -> 2641747 | G19: 3 | H19: 191225 | J19: 2832972 | K19: 1 | L19: 9 | M19: 2641747 | N19: 0 | O19: 0 | P19: 9 | Q19: 2641747
B20: 2 | C20: 9 | D20: =2740224+421139 -> 3161363 | G20: 6 | H20: 339700 | J20: 3501063 | K20: 2 | L20: 9 | M20: 3161363 | N20: 0 | O20: 0 | P20: 9 | Q20: 3161363
B21: 3 | C21: 9 | D21: =3624717+477339 -> 4102056 | G21: 8 | H21: 1028880 | J21: 5130936 | K21: 3 | L21: 9 | M21: 4102056 | N21: 0 | O21: 0 | P21: 9 | Q21: 4102056
B22: 賞与２４年.４ | C22: 7 | D22: 1900000 | H22: 0 | J22: 1900000 | K22: 7 | L22: 7 | M22: 1900000 | N22: 0 | O22: 0 | P22: 7 | Q22: 1900000
B23: 賞与２４年７ | C23: =+I23-G23 -> 0 | D23: =1465000+140000 -> 1605000 | H23: 0 | J23: 1605000 | K23: 12 | L23: 0 | M23: 1605000 | N23: 0 | O23: 0 | P23: 0 | Q23: 1605000
B24: 賞与２５年１２ | C24: 8 | D24: =2036000+130000 -> 2166000 | G24: 1 | H24: 60000 | J24: 2226000 | K24: 3 | L24: 8 | M24: 2166000 | N24: 0 | O24: 0 | P24: 8 | Q24: 2166000
B25: 合計 | C25: / | D25: =SUM(D10:D24) -> 40479382 | E25: / | G25: P | H25: =SUM(H10:H24) -> 3448855 | I25: / | J25: =SUM(J10:J24) -> 43928237 | L25: / | M25: =SUM(M10:M24) -> 40479382 | N25: / | O25: =SUM(O10:O24) -> 0 | P25: / | Q25: =SUM(Q10:Q24) -> 40479382 | R25: / | S25: =SUM(S10:S24) -> 0
B26: 備考 | J26: 申告書へ | M26: 労災保険分 | O26: 雇用保険分
E27: 225500 | F27: 372890 | H27: 3079346 | I27: =+E27+F27+H27 -> 3677736 | J27: 転記する額 | L27: 9 | N27: 10 | O27: Ａ | P27: 11 | Q27: Ｂ | S27: Ａ－Ｂ
M28: =+J25/1000 -> 43928.237 | N28: 千円 | O28: =+D25/1000 -> 40479.382 | Q28: 0 | S28: =+O28-Q28 -> 40479.382
B30: 算定期間 | D30: 算定期間平成24年４月１日から平成25年３月３１日まで
B31: 確定保険料 | D31: 算定基礎額（千円） | F31: 保険料拠出金率 | H31: 確定保険料。一般救出金 | J31: 確定保険料・一般拠出金
B32: 労働保険料 | C32: イ | D32: **************** | F32: 18.5 | G32: 10-イ” | H32: =SUM(H33:H36) -> 759215.132
B33: 労災保検分 | C33: ロ | D33: =+$M$28 -> 43928.237 | F33: 3 | H33: =+D33*F33 -> 131784.711
B34: 雇用保険法適用者分 | C34: ハ | D34: =+O28 -> 40479.382 | H34: ＊＊＊＊＊＊＊
B35: 高年齢労働者分 | C35: ニ | D35: 0 | F35: 15.5 | H35: 0
B36: 保険料算定対象者分 | C36: ホ | D36: =+D34-D35 -> 40479.382 | F36: 15.5 | G36: 14-イ | H36: =+D36*F36 -> 627430.421
B37: 一般拠出金 | C37: ヘ | D37: =+$M$28 -> 43928.237 | F37: 0.05 | G37: 10-ヘ | H37: =+D37*F37 -> 2196.41185
B39: 概算期間 | E39: 算定期間平成25年４月１日から平成２6年３月３１日まで
E40: 算定基礎額（千円） | G40: 保険料拠出金率 | I40: 確定保険料。一般救出金 | L40: 確定保険料・一般拠出金
B41: 労働保険料 | D41: イ | E41: *************** | G41: 16.5 | H41: １４－イ | I41: =SUM(I42:I45) -> 678256.368
B42: 労災保検分 | D42: ロ | E42: =+$M$28 -> 43928.237 | G42: 3 | I42: =+E42*G42 -> 131784.711
B43: 雇用保険法適用者分 | D43: ハ | E43: =+$O$28 -> 40479.382 | G43: ************** | I43: **************
B44: 高年齢労働者分 | D44: ニ | E44: 0 | G44: ************** | I44: 0
B45: 保険料算定対象者分 | D45: ホ | E45: =+E43-E44 -> 40479.382 | G45: 13.5 | I45: =+E45*G45 -> 546471.657
N46: 延納回数 | O46: 3
B47: 申告済概算保険料 | F47: -18 | G47: 740020
B48: 差引額 | D48: 充当額 | E48: =+G47-H32 -> -19195.132 | F48: 還付額 | G48: =+G47-H32 -> -19195.132 | H48: 不足額 | I48: =+H32-G47 -> 19195.132
B49: 期別納付額 | E49: 概算保険料額 | G49: 充当額 | I49: 不足額 | L49: 今期労働保険料 | N49: 一般拠出金 | P49: 今期納付額
B50: 全額または１期 | D50: 1 | E50: =+$I$41-E51-E52 -> 226086.368 | G50: =IF(E48<0,0,E48) -> 0 | I50: =IF(I48>0,I48,0) -> 19195.132 | L50: =+E50-G50+I50 -> 245281.5 | N50: =+H37 -> 2196.41185 | P50: =+N50+L50 -> 247477.9119
D51: 2 | E51: =INT(+$I$41/$O$46) -> 226085
D52: 3 | E52: =INT(+$I$41/$O$46) -> 226085
